bitfinex/quotes_ETHUSD_20250914
["timestamp","ask_amount","ask_price","bid_price","bid_amount"]
[1757836588108,6.98652148,4650.9,4650.8,0.001]
[1757836588308,4.8364,4650.9,4650.8,0.001]
[1757836590838,6.98652148,4650.9,4650.8,0.001]
[1757836591006,8.06537269,4650.9,4650.8,0.001]
[1757836591804,8.15141816,4650.9,4650.8,0.001]
[1757836592304,11.15141816,4650.9,4650.8,0.001]
[1757836592529,11.27111148,4650.9,4650.8,0.001]
[1757836592738,11.47058855,4650.9,4650.8,0.001]
[1757836593765,7.18531148,4650.9,4650.8,0.001]
[1757836593923,9.57376695,4650.9,4650.8,0.001]
[1757836594462,10.04476695,4650.9,4650.8,0.001]
[1757836598462,7.89464547,4650.9,4650.8,0.001]
[1757836598661,10.04476695,4650.9,4650.8,0.001]
[1757836599563,7.89464547,4650.9,4650.8,0.001]
[1757836599729,10.04476695,4650.9,4650.8,0.001]
[1757836599925,11.42944288,4650.9,4650.8,0.001]
[1757836600126,7.84244288,4650.9,4650.8,0.001]
[1757836600359,11.42944288,4650.9,4650.8,0.001]
[1757836602584,11.43144288,4650.9,4650.8,0.001]
[1757836602934,7.84444288,4650.9,4650.8,0.001]
[1757836603143,10.51954288,4650.9,4650.8,0.001]
[1757836604076,8.3694214,4650.9,4650.8,0.001]
[1757836604382,0.08804547,4650.9,4650.8,0.2929]
[1757836604547,3.69646899,4650.9,4650.8,0.2929]
[1757836604747,3.61042352,4650.9,4650.8,0.7704]
[1757836605159,3.61042352,4650.9,4650.8,1.1932]
[1757836605569,3.61042352,4650.9,4650.8,0.7704]
[1757836605769,3.61042352,4650.9,4650.8,0.2929]
[1757836608191,0.02342352,4650.9,4650.8,0.2929]
[1757836608383,3.589,4650.9,4650.8,0.2929]
[1757836608701,3.589,4650.9,4650.8,0.7603]
[1757836609067,3.589,4650.9,4650.8,0.2929]
[1757836609883,3.589,4650.9,4650.8,0.7603]
[1757836610084,3.6962,4650.9,4650.8,0.7603]
[1757836611880,4.9393,4650.9,4650.8,0.001]
[1757836612079,7.08942148,4650.9,4650.8,0.001]
[1757836612363,4.9393,4650.9,4650.8,0.001]
[1757836612978,4.4427,4650.9,4650.8,0.001]
[1757836615270,6.59282148,4650.9,4650.8,0.001]
[1757836615768,4.4427,4650.9,4650.8,0.001]
[1757836618206,3.6962,4650.9,4650.8,0.001]
[1757836618873,3.71762352,4650.9,4650.8,0.001]
[1757836620181,4.02502352,4650.9,4650.8,0.001]
[1757836620404,7.63052383,4650.9,4650.8,0.001]
[1757836621069,21.27649087,4650.9,4650.8,0.001]
[1757836621980,17.86353645,4650.9,4650.8,0.001]
[1757836622202,10.34221262,4650.9,4650.8,0.001]
[1757836622383,13.72907973,4650.9,4650.8,0.3026]
[1757836622708,15.75912148,4650.9,4650.8,0.001]
[1757836623313,15.87924466,4650.9,4650.8,0.001]
[1757836623713,13.72912318,4650.9,4650.8,0.001]
[1757836624320,15.87924466,4650.9,4650.8,0.001]
[1757836625724,13.72912318,4650.9,4650.8,0.001]
[1757836625924,7.022,4650.9,4650.8,0.3026]
[1757836626123,10.72913998,4650.9,4650.8,0.001]
[1757836626294,13.18666146,4650.9,4650.8,0.001]
[1757836626493,6.16666146,4650.9,4650.8,0.001]
[1757836627919,6.62526146,4650.9,4650.8,0.001]
[1757836628124,4.47513998,4650.9,4650.8,0.001]
[1757836628332,3.70913998,4650.9,4650.8,0.001]
[1757836628503,3.61042352,4650.9,4650.8,0.001]
[1757836630340,5.760545,4650.9,4650.8,0.001]
[1757836630509,5.85926146,4650.9,4650.8,0.001]
[1757836632726,3.70913998,4650.9,4650.8,0.001]
[1757836632928,3.61042352,4650.9,4650.8,0.3026]
[1757836633330,0.02342352,4650.9,4650.8,0.79]
[1757836633535,3.61042352,4650.9,4650.8,0.79]
[1757836633736,3.61042352,4650.9,4650.8,0.3026]
[1757836633932,5.760545,4650.9,4650.8,0.3026]
[1757836634132,5.73912148,4650.9,4650.8,0.3026]
[1757836634440,5.73912148,4650.9,4650.8,0.001]
[1757836634798,2.15212148,4650.9,4650.8,0.001]
[1757836635131,5.73912148,4650.9,4650.8,0.001]
[1757836637109,2.15212148,4650.9,4650.8,0.001]
[1757836637614,5.73812148,4650.9,4650.8,0.001]
[1757836639633,2.15212148,4650.9,4650.8,0.001]
[1757836639925,5.759545,4650.9,4650.8,0.001]
[1757836640124,5.73812148,4650.9,4650.8,0.001]
[1757836643381,6.04302148,4650.9,4650.8,0.001]
[1757836643534,7.94149704,4650.9,4650.8,0.001]
[1757836643867,8.0616969,4650.9,4650.8,0.001]
[1757836644376,11.26201598,4650.9,4650.8,0.001]
[1757836644730,11.34806182,4650.9,4650.8,0.001]
[1757836649095,10.88016182,4650.9,4650.8,0.001]
[1757836649587,10.44946182,4650.9,4650.8,0.001]
[1757836649892,10.36341598,4650.9,4650.8,0.001]
[1757836650092,10.79411598,4650.9,4650.8,0.001]
[1757836650597,6.88759704,4650.9,4650.8,0.001]
[1757836650809,10.793977,4650.9,4650.8,0.001]
[1757836651480,11.261877,4650.9,4650.8,0.001]
[1757836654698,14.05681812,4650.9,4650.8,0.001]
[1757836654908,14.14285841,4650.9,4650.8,0.001]
[1757836656667,16.93779953,4650.9,4650.8,0.001]
[1757836656916,17.39908576,4650.9,4650.8,0.001]
[1757836657104,2.15053763,4650.0,4649.8,0.001]
[1757836657403,13.18147875,4650.0,4649.8,0.001]
[1757836657605,14.70535871,4650.0,4649.8,0.001]
[1757836657766,14.79142455,4650.0,4649.8,0.001]
[1757836658672,11.99648343,4650.0,4649.8,0.001]
[1757836658998,12.52845899,4650.0,4649.8,0.001]
[1757836659704,8.94245899,4650.0,4649.8,0.001]
[1757836659872,12.09775899,4650.0,4649.8,0.001]
[1757836660073,8.20685899,4650.0,4649.8,0.001]
[1757836660273,10.79298343,4650.0,4649.9,0.291]
[1757836660474,10.59274595,4650.0,4649.9,0.291]
[1757836660669,10.59274595,4650.0,4649.9,0.001]
[1757836661378,10.59245294,4650.0,4649.9,0.001]
[1757836662072,10.59242821,4650.0,4649.9,0.001]
[1757836662472,11.90978747,4650.0,4649.9,0.001]
[1757836662673,6.80053763,4650.0,4649.9,0.291]
[1757836662898,10.38653763,4650.0,4649.9,0.291]
[1757836663305,6.80053763,4650.0,4649.9,0.291]
[1757836663511,10.38653763,4650.0,4649.9,0.7728]
[1757836663886,8.236,4650.0,4649.9,0.7728]
[1757836664806,10.38653763,4650.0,4649.9,0.7728]
[1757836665187,10.38653763,4650.0,4649.9,0.291]
[1757836667582,11.98060672,4650.0,4649.9,0.001]
[1757836667904,12.89710672,4650.0,4649.9,0.001]
[1757836668309,11.98060672,4650.0,4649.9,0.001]
[1757836668609,11.68330672,4650.0,4649.9,0.001]
[1757836668815,11.68330672,4650.0,4649.9,0.3085]
[1757836669109,10.38653763,4650.0,4649.9,0.3085]
[1757836669407,7.38753763,4650.0,4649.9,0.7976]
[1757836670721,1.65,4650.0,4649.9,0.7976]
[1757836671222,5.3442,4650.0,4649.9,1.2204]
[1757836674425,5.3442,4650.0,4649.9,0.7976]
[1757836675691,1.7572,4650.0,4649.9,0.7976]
[1757836675896,5.3432,4650.0,4649.9,0.7976]
[1757836676098,5.3432,4650.0,4649.9,0.3085]
[1757836678632,5.3432,4650.0,4649.9,0.309787]
[1757836680502,5.3432,4650.0,4649.9,0.002287]
[1757836680503,7.49373763,4650.0,4649.9,0.002287]
[1757836680703,5.3432,4650.0,4649.9,0.002287]
[1757836683429,1.7572,4650.0,4649.9,0.002287]
[1757836683638,5.3432,4650.0,4649.9,0.294587]
[1757836685225,7.79413763,4650.0,4649.9,0.002287]
[1757836685430,8.25713763,4650.0,4649.9,0.002287]
[1757836685821,9.81333812,4650.0,4649.9,0.002287]
[1757836686352,9.93336742,4650.0,4649.9,0.002287]
[1757836686918,9.82616742,4650.0,4649.9,0.002287]
[1757836687417,9.70613812,4650.0,4649.9,0.002287]
[1757836688122,9.82618618,4650.0,4649.9,0.002287]
[1757836688927,5.77718618,4650.0,4649.9,0.002287]
[1757836689127,1.77004806,4650.0,4649.9,0.294587]
[1757836689457,5.236,4650.0,4649.9,0.002287]
[1757836689620,7.38653763,4650.0,4649.9,0.002287]
[1757836691040,5.236,4650.0,4649.9,0.294587]
[1757836691843,5.5364,4650.0,4649.9,0.002287]
[1757836692046,5.9994,4650.0,4649.9,0.002287]
[1757836692241,8.14993763,4650.0,4649.9,0.002287]
[1757836692858,5.236,4650.0,4649.9,0.002287]
[1757836693267,7.38653763,4650.0,4649.9,0.002287]
[1757836694364,7.68693763,4650.0,4649.9,0.002287]
[1757836694547,9.64911807,4650.0,4649.9,0.002287]
[1757836696364,15.56420064,4650.0,4649.9,0.002287]
[1757836696563,15.76441578,4650.0,4649.9,0.002287]
[1757836698788,12.96947466,4650.0,4649.9,0.002287]
[1757836698985,15.64427433,4650.0,4649.9,0.002287]
[1757836699186,15.76437535,4650.0,4649.9,0.002287]
[1757836700762,22.78437535,4650.0,4649.9,0.002287]
[1757836701777,5.25778388,4649.9,4649.8,1e-08]
[1757836701973,7.23702739,4649.9,4649.8,1e-08]
[1757836702198,8.43612739,4649.9,4649.8,1e-08]
[1757836702586,15.45612739,4649.9,4649.8,1e-08]
[1757836702786,15.45583853,4649.9,4649.8,1e-08]
[1757836703385,17.71883853,4649.9,4649.8,1e-08]
[1757836703590,15.45583853,4649.9,4649.8,1e-08]
[1757836704597,14.99487129,4649.9,4649.8,1e-08]
[1757836704803,15.45545052,4649.9,4649.8,1e-08]
[1757836706603,15.54152747,4649.9,4649.8,1e-08]
[1757836707209,19.12752747,4649.9,4649.8,1e-08]
[1757836707422,15.54152747,4649.9,4649.8,1e-08]
[1757836707584,19.02032747,4649.9,4649.8,1e-08]
[1757836707984,14.52242747,4649.9,4649.8,1e-08]
[1757836708203,17.36064824,4649.9,4649.8,0.30230001]
[1757836708421,14.36064824,4649.9,4649.8,0.30230001]
[1757836708580,14.07455423,4649.9,4649.8,0.30230001]
[1757836708786,17.07455423,4649.9,4649.8,0.30230001]
[1757836710885,17.07455423,4649.9,4649.8,1e-08]
[1757836711417,17.07455423,4649.9,4649.8,0.30230001]
[1757836711596,13.48855423,4649.9,4649.8,0.30230001]
[1757836711799,17.07455423,4649.9,4649.8,0.30230001]
[1757836713510,7.02,4649.9,4649.8,0.75350001]
[1757836713711,10.606,4649.9,4649.8,1.17630001]
[1757836714493,10.606,4649.9,4649.8,0.75350001]
[1757836714689,10.606,4649.9,4649.8,1.17630001]
[1757836715017,10.606,4649.9,4649.8,0.75350001]
[1757836715218,10.606,4649.9,4649.8,1.17630001]
[1757836715791,7.02,4649.9,4649.8,1.17630001]
[1757836715997,3.586,4649.9,4649.8,1.17630001]
[1757836716196,3.60742352,4649.9,4649.8,1.17630001]
[1757836720934,3.60742352,4649.9,4649.8,0.75350001]
[1757836722200,3.60742352,4649.9,4649.8,0.30230001]
[1757836722400,3.60742352,4649.9,4649.8,1e-08]
[1757836723837,3.60742352,4649.9,4649.8,0.75350001]
[1757836724202,3.586,4649.9,4649.8,0.75350001]
[1757836724403,3.586,4649.9,4649.8,1.17630001]
[1757836724912,3.60742352,4649.9,4649.8,1.17630001]
[1757836725237,3.60742352,4649.9,4649.8,0.75350001]
[1757836726036,0.02142352,4649.9,4649.8,0.75350001]
[1757836726203,3.60642352,4649.9,4649.8,0.75350001]
[1757836727521,0.02142352,4649.9,4649.8,0.75350001]
[1757836727721,3.60642352,4649.9,4649.8,0.75350001]
[1757836728128,1.7572,4650.0,4649.8,0.75350001]
[1757836728379,3.585,4649.9,4649.8,1.17630001]
[1757836728534,3.585,4649.9,4649.8,0.30230001]
[1757836728970,3.60642352,4649.9,4649.8,2.45293014]
[1757836729175,3.60642352,4649.9,4649.8,2.91863014]
[1757836729962,0.02142352,4649.9,4649.8,2.91863014]
[1757836730136,3.60642352,4649.9,4649.8,2.91863014]
[1757836732978,3.585,4649.9,4649.8,2.91863014]
[1757836733476,1.65,4650.0,4649.9,2.15058388]
[1757836733652,5.235,4650.0,4649.9,3.03908388]
[1757836733851,5.235,4650.0,4649.9,0.7768]
[1757836734171,5.235,4650.0,4649.9,2.92738388]
[1757836735064,1.65,4650.0,4649.9,2.92738388]
[1757836735264,5.235,4650.0,4649.9,2.92738388]
[1757836736485,5.235,4650.0,4649.9,0.7768]
[1757836736671,5.235,4650.0,4649.9,2.92738388]
[1757836737463,5.235,4650.0,4649.9,2.46168388]
[1757836739285,6.4553,4650.0,4649.8,1e-08]
[1757836739485,5.5333,4650.0,4649.8,1e-08]
[1757836739677,0.94342352,4649.9,4649.8,1e-08]
[1757836740189,1.24172352,4649.9,4649.8,1e-08]
[1757836741484,1.88959587,4649.9,4649.8,1e-08]
[1757836745299,4.04017975,4649.9,4649.8,1e-08]
[1757836747078,0.96759587,4649.9,4649.8,1e-08]
[1757836747682,0.02142352,4649.9,4649.8,1e-08]
[1757836747881,3.60542352,4649.9,4649.8,0.28880001]
[1757836748281,3.60542352,4649.9,4649.8,1e-08]
[1757836748482,4.37202352,4649.9,4649.8,1e-08]
[1757836748688,3.60542352,4649.9,4649.8,0.28880001]
[1757836749013,3.71262352,4649.9,4649.8,0.28880001]
[1757836750700,3.6912,4649.9,4649.8,0.28880001]
[1757836751799,3.6912,4649.9,4649.8,0.76280001]
[1757836752587,3.6912,4649.9,4649.8,0.28880001]
[1757836753090,0.1072,4649.9,4649.8,3.5227831]
[1757836753403,0.002,4650.0,4649.9,2.94258388]
[1757836753786,0.002,4650.0,4649.9,4.12818388]
[1757836756896,0.002,4650.0,4649.9,3.70538388]
[1757836757780,0.002,4650.0,4649.9,3.23138388]
[1757836757981,0.002,4650.0,4649.9,3.85701456]
[1757836759020,0.002,4650.0,4649.9,2.77621456]
[1757836759021,0.7826,4650.0,4649.9,2.77621456]
[1757836759231,0.7826,4650.0,4649.9,2.15058388]
[1757836759384,0.3168,4650.0,4649.9,2.15058388]
[1757836759708,0.002,4650.0,4649.9,2.15058388]
[1757836760027,1.2535,4650.0,4649.8,1e-08]
[1757836760323,0.49232352,4649.9,4649.8,1e-08]
[1757836760812,1.27292352,4649.9,4649.8,1e-08]
[1757836761012,0.80202352,4649.9,4649.8,2.15063014]
[1757836763179,0.80202352,4649.9,4649.8,1e-08]
[1757836763587,0.80202352,4649.9,4649.8,2.15063014]
[1757836764219,0.80202352,4649.9,4649.8,1e-08]
[1757836764609,1.27292352,4649.9,4649.8,1e-08]
[1757836765906,0.80712352,4649.9,4649.8,1e-08]
[1757836766112,1.27292352,4649.9,4649.8,1e-08]
[1757836766724,0.80202352,4649.9,4649.8,1e-08]
[1757836768747,0.02142352,4649.9,4649.8,1e-08]
[1757836769835,0.33622352,4649.9,4649.8,1e-08]
[1757836771046,0.80202352,4649.9,4649.8,1e-08]
[1757836773254,1.27292352,4649.9,4649.8,1e-08]
[1757836775064,0.80202352,4649.9,4649.8,1e-08]
[1757836775763,1.27292352,4649.9,4649.8,1e-08]
[1757836776058,0.80202352,4649.9,4649.8,1e-08]
[1757836776635,0.02142352,4649.9,4649.8,1e-08]
[1757836777966,4.07022352,4649.9,4649.8,1e-08]
[1757836778163,0.48722352,4649.9,4649.8,1e-08]
[1757836778363,4.07022352,4649.9,4649.8,1e-08]
[1757836778943,4.38502352,4649.9,4649.8,1e-08]
[1757836780261,4.85592352,4649.9,4649.8,1e-08]
[1757836780467,4.8345,4649.9,4649.8,1e-08]
[1757836784860,5.70891989,4649.9,4649.8,1e-08]
[1757836786884,5.23801989,4649.9,4649.8,1e-08]
[1757836787547,4.77221989,4649.9,4649.8,1e-08]
[1757836787983,3.8978,4649.9,4649.8,1e-08]
[1757836788183,3.91922352,4649.9,4649.8,1e-08]
[1757836788797,3.60442352,4649.9,4649.8,1e-08]
[1757836789162,3.91542352,4649.9,4649.8,1e-08]
[1757836789360,1.24622352,4649.9,4649.8,1e-08]
[1757836789587,4.82922352,4649.9,4649.8,1e-08]
[1757836789787,4.355,4649.9,4649.8,1e-08]
[1757836789975,4.37642352,4649.9,4649.8,1e-08]
[1757836790171,0.79342352,4649.9,4649.8,1e-08]
[1757836790376,0.02142352,4649.9,4649.8,1e-08]
[1757836790695,3.60442352,4649.9,4649.8,1e-08]
[1757836791400,3.60642352,4649.9,4649.8,1e-08]
[1757836792776,0.02342352,4649.9,4649.8,1e-08]
[1757836792986,3.585,4649.9,4649.8,1e-08]
[1757836794772,3.585,4649.9,4649.8,0.29840001]
[1757836796099,0.002,4649.9,4649.8,0.29840001]
[1757836796305,3.585,4649.9,4649.8,0.29840001]
[1757836796678,3.585,4649.9,4649.8,1e-08]
[1757836796982,3.60642352,4649.9,4649.8,1e-08]
[1757836798800,3.585,4649.9,4649.8,1e-08]
[1757836801473,0.002,4649.9,4649.8,1e-08]
[1757836801709,3.584,4649.9,4649.8,1e-08]
[1757836802082,3.60542352,4649.9,4649.8,1e-08]
[1757836802311,4.38372352,4649.9,4649.8,1e-08]
[1757836802474,4.83852352,4649.9,4649.8,1e-08]
[1757836802675,4.8171,4649.9,4649.8,1e-08]
[1757836806126,4.3527,4649.9,4649.8,1e-08]
[1757836806435,4.83852352,4649.9,4649.8,1e-08]
[1757836806601,4.8171,4649.9,4649.8,1e-08]
[1757836808633,7.84036313,4649.9,4649.8,1e-08]
[1757836809539,7.96053763,4649.9,4649.8,1e-08]
[1757836809895,5.80995375,4649.9,4649.8,1e-08]
[1757836810098,7.96053763,4649.9,4649.8,1e-08]
[1757836810298,7.84036313,4649.9,4649.8,1e-08]
[1757836810936,5.68977925,4649.9,4649.8,1e-08]
[1757836811337,7.84036313,4649.9,4649.8,1e-08]
[1757836811539,3.33916313,4649.9,4649.8,1e-08]
[1757836811702,4.79200277,4649.9,4649.8,1e-08]
[1757836811910,0.002,4649.9,4649.8,0.29860001]
[1757836812108,3.6912,4649.9,4649.8,0.29860001]
[1757836813000,4.0051,4649.9,4649.8,1e-08]
[1757836813206,7.64273623,4649.9,4649.8,1e-08]
[1757836813430,5.49215235,4649.9,4649.8,1e-08]
[1757836813937,4.57295235,4649.9,4649.8,1e-08]
[1757836814340,0.002,4649.9,4649.8,0.29860001]
[1757836814641,0.002,4649.9,4649.8,3.33313014]
[1757836814642,3.584,4649.9,4649.8,3.33313014]
[1757836815207,3.584,4649.9,4649.8,2.91033014]
[1757836816312,3.584,4649.9,4649.8,0.29860001]
[1757836816526,3.8934,4649.9,4649.8,1e-08]
[1757836816726,5.72788868,4649.9,4649.8,1e-08]
[1757836817411,4.8498,4649.9,4649.8,1e-08]
[1757836818239,4.3592,4649.9,4649.8,1e-08]
[1757836818407,4.38062352,4649.9,4649.8,1e-08]
[1757836818625,3.60542352,4649.9,4649.8,1e-08]
[1757836818822,3.584,4649.9,4649.8,0.29080001]
[1757836819039,3.584,4649.9,4649.8,1e-08]
[1757836819329,3.584,4649.9,4649.8,0.29080001]
[1757836819528,3.584,4649.9,4649.8,0.78220001]
[1757836819756,3.584,4649.9,4649.8,0.29080001]
[1757836819935,3.584,4649.9,4649.8,0.78220001]
[1757836820668,3.584,4649.9,4649.8,0.29080001]
[1757836820830,3.584,4649.9,4649.8,1e-08]
[1757836822570,4.8498,4649.9,4649.8,1e-08]
[1757836826380,4.3592,4649.9,4649.8,1e-08]
[1757836826537,4.38062352,4649.9,4649.8,1e-08]
[1757836826868,3.60442352,4649.9,4649.8,0.29080001]
[1757836827040,3.91382352,4649.9,4649.8,1e-08]
[1757836827240,4.37962352,4649.9,4649.8,1e-08]
[1757836828373,3.60442352,4649.9,4649.8,1e-08]
[1757836828550,3.60442352,4649.9,4649.8,0.29080001]
[1757836828753,3.60442352,4649.9,4649.8,0.78220001]
[1757836828975,3.583,4649.9,4649.8,0.78220001]
[1757836829147,3.583,4649.9,4649.8,0.29080001]
[1757836829479,0.002,4649.9,4649.8,0.29080001]
[1757836829641,0.002,4649.9,4649.8,0.78220001]
[1757836829836,0.002,4649.9,4649.8,3.35563014]
[1757836830169,3.583,4649.9,4649.8,3.90626491]
[1757836830373,3.583,4649.9,4649.8,3.48346491]
[1757836830951,0.002,4649.9,4649.8,1.33283478]
[1757836831163,3.583,4649.9,4649.8,0.78220001]
[1757836831582,3.583,4649.9,4649.8,0.29080001]
[1757836831880,3.583,4649.9,4649.8,1e-08]
[1757836832373,4.8488,4649.9,4649.8,1e-08]
[1757836832774,6.99938388,4649.9,4649.8,1e-08]
[1757836832978,8.07957208,4649.9,4649.8,1e-08]
[1757836833379,8.19973703,4649.9,4649.8,1e-08]
[1757836834201,11.40000316,4649.9,4649.8,1e-08]
[1757836834355,14.90257366,4649.9,4649.8,1e-08]
[1757836836968,15.36331671,4649.9,4649.8,1e-08]
[1757836837171,22.38331671,4649.9,4649.8,1e-08]
[1757836837474,21.92257366,4649.9,4649.8,1e-08]
[1757836838090,22.38309185,4649.9,4649.8,1e-08]
[1757836838278,21.92257366,4649.9,4649.8,1e-08]
[1757836838471,18.34157366,4649.9,4649.8,1e-08]
[1757836838685,21.92257366,4649.9,4649.8,1e-08]
[1757836840677,14.90257366,4649.9,4649.8,1e-08]
[1757836841802,14.90218587,4649.9,4649.8,1e-08]
[1757836843583,7.90468065,4649.9,4649.8,1e-08]
[1757836843891,14.90318587,4649.9,4649.8,1e-08]
[1757836846394,10.85538587,4649.9,4649.8,1e-08]
[1757836846586,14.90088587,4649.9,4649.8,1e-08]
[1757836849178,14.89992783,4649.9,4649.8,1e-08]
[1757836849387,10.85442783,4649.9,4649.8,1e-08]
[1757836849591,14.89992783,4649.9,4649.8,1e-08]
[1757836851306,11.29822783,4649.9,4649.8,1e-08]
[1757836851493,14.40932783,4649.9,4649.8,1e-08]
[1757836851683,14.88022783,4649.9,4649.8,1e-08]
[1757836851884,10.52932261,4649.9,4649.8,1e-08]
[1757836852087,14.88022783,4649.9,4649.8,1e-08]
[1757836852286,11.29822783,4649.9,4649.8,1e-08]
[1757836852480,14.88022783,4649.9,4649.8,1e-08]
[1757836853217,14.88025659,4649.9,4649.8,1e-08]
[1757836853614,11.29825659,4649.9,4649.8,1e-08]
[1757836853914,14.88025659,4649.9,4649.8,1e-08]
[1757836854612,6.94735137,4649.9,4649.8,1e-08]
[1757836854819,10.21995137,4649.9,4649.8,0.31520001]
[1757836855315,10.98465137,4649.9,4649.8,1e-08]
[1757836855492,6.63795137,4649.9,4649.8,1e-08]
[1757836855814,6.43849433,4649.9,4649.8,1e-08]
[1757836856002,10.02149433,4649.9,4649.8,0.31520001]
[1757836857138,6.43849433,4649.9,4649.8,0.77630001]
[1757836857321,8.85524085,4649.9,4649.8,1.19910001]
[1757836857707,5.27224085,4649.9,4649.8,1.19910001]
[1757836858029,8.73558388,4649.9,4649.8,1.19910001]
[1757836858331,5.15258388,4649.9,4649.8,1.19910001]
[1757836858498,8.73658388,4649.9,4649.8,1.19910001]
[1757836858834,5.15258388,4649.9,4649.8,0.77630001]
[1757836859133,10.33409208,4649.9,4649.8,0.77630001]
[1757836859328,10.33409208,4649.9,4649.8,0.31520001]
[1757836859737,10.75515455,4649.9,4649.8,1e-08]
[1757836860119,15.10605977,4649.9,4649.8,1e-08]
[1757836860629,15.19212986,4649.9,4649.8,1e-08]
[1757836860794,21.74122986,4649.9,4649.8,1e-08]
[1757836861516,21.27772986,4649.9,4649.8,1e-08]
[1757836861824,22.23142986,4649.9,4649.8,1e-08]
[1757836862223,22.43159711,4649.9,4649.8,1e-08]
[1757836863114,22.89283676,4649.9,4649.8,1e-08]
[1757836863317,22.89310656,4649.9,4649.8,1e-08]
[1757836868909,22.42930656,4649.9,4649.8,1e-08]
[1757836869154,22.89410656,4649.9,4649.8,1e-08]
[1757836869733,14.63770134,4649.9,4649.8,1e-08]
[1757836870115,18.22270134,4649.9,4649.8,1e-08]
[1757836870417,14.63770134,4649.9,4649.8,1e-08]
[1757836870725,18.22270134,4649.9,4649.8,0.30600001]
[1757836871858,14.63770134,4649.9,4649.8,0.30600001]
[1757836872055,18.22270134,4649.9,4649.8,0.76010001]
[1757836872372,18.22270134,4649.9,4649.8,0.30600001]
[1757836872717,18.22270134,4649.9,4649.8,1e-08]
[1757836873756,18.22270134,4649.9,4649.8,0.30600001]
[1757836873960,18.22370134,4649.9,4649.8,0.30600001]
[1757836874253,13.62619314,4649.9,4649.8,0.76010001]
[1757836874460,13.07911297,4649.9,4649.8,0.76010001]
[1757836874661,16.07911297,4649.9,4649.8,0.76010001]
[1757836874813,12.49311297,4649.9,4649.8,0.76010001]
[1757836875021,16.07911297,4649.9,4649.8,0.76010001]
[1757836875557,16.07911297,4649.9,4649.8,1e-08]
[1757836875732,16.37061297,4649.9,4649.8,1e-08]
[1757836875930,16.07911297,4649.9,4649.8,1e-08]
[1757836876134,16.07911297,4649.9,4649.8,0.78040001]
[1757836876722,16.07911297,4649.9,4649.8,0.28620001]
[1757836877846,16.07911297,4649.9,4649.8,0.78040001]
[1757836879855,16.07911297,4649.9,4649.8,0.28620001]
[1757836881387,16.07911297,4649.9,4649.8,1e-08]
[1757836881591,16.37061297,4649.9,4649.8,1e-08]
[1757836881889,16.79921297,4649.9,4649.8,1e-08]
[1757836882411,16.67897973,4649.9,4649.8,1e-08]
[1757836882591,16.79915712,4649.9,4649.8,1e-08]
[1757836883384,13.21315712,4649.9,4649.8,1e-08]
[1757836883553,16.79815712,4649.9,4649.8,1e-08]
[1757836884289,16.07805712,4649.9,4649.8,1e-08]
[1757836884466,16.07805712,4649.9,4649.8,0.28620001]
[1757836884652,16.07805712,4649.9,4649.8,0.78040001]
[1757836884856,12.49305712,4649.9,4649.8,0.78040001]
[1757836885051,16.07705712,4649.9,4649.8,0.78040001]
[1757836885251,12.49305712,4649.9,4649.8,0.78040001]
[1757836885454,16.07705712,4649.9,4649.8,0.78040001]
[1757836885689,12.49305712,4649.9,4649.8,0.78040001]
[1757836885850,16.07705712,4649.9,4649.8,0.78040001]
[1757836886287,16.07705712,4649.9,4649.8,1e-08]
[1757836886492,18.06501264,4649.9,4649.8,1e-08]
[1757836886691,18.35651264,4649.9,4649.8,1e-08]
[1757836886857,18.78511264,4649.9,4649.8,1e-08]
[1757836887292,18.35651264,4649.9,4649.8,1e-08]
[1757836887498,19.26891264,4649.9,4649.8,1e-08]
[1757836888004,22.68541786,4649.9,4649.8,1e-08]
[1757836888359,23.23295786,4649.9,4649.8,1e-08]
[1757836890696,23.23295826,4649.9,4649.8,1e-08]
[1757836892510,2.15067638,4649.7,4648.0,0.4942]
[1757836892669,8.5675517,4648.9,4647.6,0.4942]
[1757836892866,21.43452534,4648.9,4647.6,0.4942]
[1757836893061,22.80839487,4648.9,4647.6,0.4942]
[1757836893267,23.30259487,4648.9,4647.6,0.4942]
[1757836893589,25.71019951,4648.9,4647.6,0.4942]
[1757836894387,25.71019951,4648.9,4647.6,0.917]
[1757836895007,25.71019951,4648.9,4647.6,0.4228]
[1757836895211,25.71019951,4648.9,4647.8,0.4942]
[1757836896403,25.09202019,4648.9,4647.8,0.4942]
[1757836896609,22.29369429,4648.9,4647.8,0.4942]
[1757836896814,25.09202019,4648.9,4647.8,0.4942]
[1757836898009,18.70969429,4648.9,4647.8,0.4942]
[1757836898212,23.88812019,4648.9,4648.3,0.4942]
[1757836898702,24.60822019,4648.9,4648.3,0.4942]
[1757836899683,24.60822019,4648.9,4647.1,0.02151879]
[1757836899924,25.09202019,4648.9,4647.7,0.4942]
[1757836900210,25.0906752,4648.9,4648.8,1e-08]
[1757836901309,24.6068752,4648.9,4648.8,1e-08]
[1757836901487,25.09029327,4648.9,4648.8,1e-08]
[1757836902008,26.38029327,4648.9,4648.8,1e-08]
[1757836902314,25.09029327,4648.9,4648.8,1e-08]
[1757836902926,17.04394283,4648.9,4648.8,0.28620001]
[1757836903107,18.64298731,4648.9,4648.8,0.28620001]
[1757836904512,15.05598731,4648.9,4648.8,0.28620001]
[1757836904719,12.05598731,4648.9,4648.8,0.28620001]
[1757836904883,14.94749146,4648.9,4648.8,0.78040001]
[1757836905083,17.94749146,4648.9,4648.8,0.78040001]
[1757836905778,17.94749146,4648.9,4648.8,0.28620001]
[1757836906182,18.23949146,4648.9,4648.8,1e-08]
[1757836906418,19.37260571,4648.9,4648.8,1e-08]
[1757836906985,19.83250242,4648.9,4648.8,1e-08]
[1757836907190,19.83190571,4648.9,4648.8,1e-08]
[1757836907417,20.29179449,4648.9,4648.8,1e-08]
[1757836908021,19.83190571,4648.9,4648.8,1e-08]
[1757836908186,20.29179449,4648.9,4648.8,1e-08]
[1757836909097,20.29176359,4648.9,4648.8,1e-08]